fUST/lending_fUST_20250827
["ID","MTS","AMOUNT","RATE_DAILY","PERIOD"]
[381568701,1756285865722,-863.4,0.00023987,2]
[381568702,1756285865732,-266.71,0.00023987,2]
[381568703,1756285865742,-280.55810464,0.00023987,2]
[381568704,1756285865751,-480.0,0.00023987,2]
[381568705,1756285865761,-480.0,0.00023987,2]
[381568706,1756285865770,-480.0,0.00023987,2]
[381568707,1756285865780,-480.0,0.00023987,2]
[381568708,1756285865789,-480.0,0.00023987,2]
[381568709,1756285865799,-480.0,0.00023987,2]
[381568710,1756285865809,-13314.52,0.00023987,2]
[381568711,1756285865818,-774.15,0.00023987,2]
[381568712,1756285865827,-480.0,0.00023987,2]
[381568713,1756285865837,-1134.59,0.00023987,2]
[381568714,1756285865846,-480.0,0.00023987,2]
[381568715,1756285865855,-480.0,0.00023987,2]
[381568716,1756285865865,-480.0,0.00023987,2]
[381568717,1756285865875,-1411.35,0.00023987,2]
[381568718,1756285865885,-231.54718855,0.00023988,2]
[381568719,1756285865895,-480.0,0.00023988,2]
[381568720,1756285865904,-480.0,0.00023988,2]
[381568721,1756285865914,-480.0,0.00023988,2]
[381568722,1756285865923,-582.13,0.00023988,2]
[381568723,1756285865933,-480.0,0.00023988,2]
[381568724,1756285865943,-480.0,0.00023988,2]
[381568725,1756285865952,-480.0,0.00023988,2]
[381568726,1756285865961,-480.0,0.00023988,2]
[381568727,1756285865970,-329.19338478,0.00023988,2]
[381568728,1756285865980,-480.0,0.00023988,2]
[381568729,1756285865989,-511.69,0.00023988,2]
[381568730,1756285865998,-240.95009214,0.00023988,2]
[381568731,1756285866008,-525.01,0.00023988,2]
[381568732,1756285866017,-480.0,0.00023988,2]
[381568733,1756285866026,-480.0,0.00023988,2]
[381568734,1756285866036,-1917.35,0.00023988,2]
[381568735,1756285866045,-783.15,0.00023988,2]
[381568736,1756285866054,-480.0,0.00023988,2]
[381568737,1756285866064,-516.6,0.00023988,2]
[381568738,1756285866073,-480.0,0.00023988,2]
[381568739,1756285866083,-1140.75,0.00023988,2]
[381568740,1756285866097,-480.0,0.00023988,2]
[381568741,1756285866106,-480.0,0.00023988,2]
[381568742,1756285866116,-700.94,0.00023988,2]
[381568743,1756285866125,-3208.7,0.00023988,2]
[381568744,1756285866137,-480.0,0.00023988,2]
[381568745,1756285866146,-779.72,0.00023988,2]
[381568746,1756285866155,-1513.85,0.00023988,2]
[381568747,1756285866167,-1234.21,0.00023988,2]
[381568748,1756285866177,-480.0,0.00023988,2]
[381568749,1756285866187,-480.0,0.00023988,2]
[381568750,1756285866196,-1074.18,0.00023988,2]
[381568751,1756285866206,-651.98,0.00023988,2]
[381568752,1756285866216,-880.36,0.00023988,2]
[381568753,1756285866226,-506.76,0.00023988,2]
[381568754,1756285866235,-480.0,0.00023988,2]
[381568755,1756285866244,-151.0,0.00023988,7]
[381568756,1756285866255,-2039.07,0.00023988,2]
[381568757,1756285866264,-480.0,0.00023988,2]
[381568758,1756285866274,-151.0,0.00023988,7]
[381568759,1756285866284,-1038.1,0.00023988,2]
[381568760,1756285866294,-206.24466136,0.00023988,2]
[381568761,1756285866304,-480.0,0.00023988,2]
[381568762,1756285866314,-151.0,0.00023988,7]
[381568763,1756285866323,-930.51,0.00023988,2]
[381568764,1756285866334,-1610.0,0.00023988,2]
[381568765,1756285866343,-480.0,0.00023988,2]
[381568766,1756285866353,-480.0,0.00023988,2]
[381568767,1756285866362,-480.0,0.00023988,2]
[381568768,1756285866372,-1381.94,0.00023988,2]
[381568769,1756285866382,-480.0,0.00023988,2]
[381568770,1756285866393,-480.0,0.00023988,2]
[381568771,1756285866402,-662.23,0.00023988,2]
[381568772,1756285866412,-524.45,0.00023988,2]
[381568773,1756285866421,-605.68,0.00023988,2]
[381568774,1756285866430,-480.0,0.00023988,2]
[381568775,1756285866440,-480.0,0.00023988,2]
[381568776,1756285866449,-151.0,0.00023988,7]
[381568777,1756285866459,-151.0,0.00023988,7]
[381568778,1756285866469,-840.05,0.00023988,2]
[381568779,1756285866479,-151.0,0.00023988,7]
[381568780,1756285866488,-480.0,0.00023988,2]
[381568781,1756285866498,-505.0,0.00023988,2]
[381568782,1756285866507,-151.0,0.00023988,7]
[381568783,1756285866517,-491.96,0.00023988,2]
[381568784,1756285866526,-480.0,0.00023988,2]
[381568785,1756285866536,-480.0,0.00023988,2]
[381568786,1756285866545,-934.27,0.00023988,2]
[381568787,1756285866555,-480.0,0.00023988,2]
[381568788,1756285866563,-609.61,0.00023988,2]
[381568789,1756285866572,-807.48,0.00023988,2]
[381568790,1756285866582,-669.06,0.00023988,2]
[381568791,1756285866593,-480.0,0.00023988,2]
[381568792,1756285866602,-480.0,0.00023988,2]
[381568793,1756285866611,-205.26518768,0.00023988,2]
[381568794,1756285866621,-516.23,0.00023988,2]
[381568795,1756285866630,-480.0,0.00023988,2]
[381568796,1756285866642,-901.21,0.00023988,2]
[381568797,1756285866651,-480.0,0.00023988,2]
[381568798,1756285866660,-544.1756106,0.00023988,2]
[381568799,1756285866670,-480.0,0.00023988,2]
[381568800,1756285866679,-480.0,0.00023988,2]
[381568801,1756285866690,-722.63,0.00023988,2]
[381568802,1756285866700,-480.0,0.00023988,2]
[381568803,1756285866709,-849.45,0.00023988,2]
[381568804,1756285866718,-480.0,0.00023988,2]
[381568805,1756285866728,-480.0,0.00023988,2]
[381568806,1756285866737,-482.8438972,0.00023988,2]
[381568807,1756285866746,-480.0,0.00023988,2]
[381568808,1756285866755,-968.86,0.00023988,2]
[381568809,1756285866764,-1060.07,0.00023988,2]
[381568810,1756285866773,-615.02,0.00023988,2]
[381568811,1756285866782,-480.0,0.00023988,2]
[381568812,1756285866791,-784.01,0.00023988,2]
[381568813,1756285866800,-480.0,0.00023988,2]
[381568814,1756285866809,-501.06,0.00023988,2]
[381568815,1756285866819,-480.0,0.00023988,2]
[381568816,1756285866828,-1471.98,0.00023988,2]
[381568817,1756285866837,-480.0,0.00023988,2]
[381568818,1756285866847,-525.55,0.00023988,2]
[381568819,1756285866855,-800.69,0.00023988,2]
[381568820,1756285866865,-480.0,0.00023988,2]
[381568821,1756285866874,-480.0,0.00023988,2]
[381568822,1756285866883,-480.0,0.00023988,2]
[381568823,1756285866893,-926.66,0.00023988,2]
[381568824,1756285866904,-480.0,0.00023988,2]
[381568825,1756285866914,-480.0,0.00023988,2]
[381568826,1756285866923,-800.84,0.00023988,2]
[381568827,1756285866933,-563.33,0.00023988,2]
[381568828,1756285866943,-480.0,0.00023988,2]
[381568829,1756285866953,-943.39,0.00023988,2]
[381568830,1756285866962,-485.70543418,0.00023988,2]
[381568831,1756285866972,-480.0,0.00023988,2]
[381568832,1756285866981,-2384.24,0.00023988,2]
[381568833,1756285866991,-530.94,0.00023988,2]
[381568834,1756285867001,-480.0,0.00023988,2]
[381568835,1756285867011,-706.24,0.00023988,2]
[381568836,1756285867020,-816.28,0.00023988,2]
[381568837,1756285867030,-484.00405728,0.00023988,2]
[381568838,1756285867039,-480.0,0.00023989,2]
[381568839,1756285867049,-480.0,0.00023989,2]
[381568840,1756285867058,-480.0,0.00023989,2]
[381568841,1756285867068,-480.0,0.00023989,2]
[381568842,1756285867079,-480.0,0.00023989,2]
[381568843,1756285867093,-480.0,0.00023989,2]
[381568844,1756285867103,-860.83,0.00023989,2]
[381568845,1756285867113,-838.66,0.00023989,2]
[381568846,1756285867123,-480.0,0.00023989,2]
[381568847,1756285867134,-672.4,0.00023989,2]
[381568848,1756285867145,-557.74056104,0.00023989,2]
[381568849,1756285867154,-2230.96224417,0.00023989,2]
[381568850,1756285867164,-1304.95871679,0.00023989,2]
[381568851,1756285867174,-182.24299977,0.00023989,2]
[381568852,1756285867183,-5019.66504938,0.00023989,2]
[381568853,1756285867193,-587.2153852,0.00023989,2]
[381568854,1756285867202,-151.0,0.00024,7]
[381568855,1756285867211,-1000.0,0.00024,2]
[381568856,1756285867221,-845.298898,0.00024,7]
[381568857,1756285867230,-160.0,0.00024,7]
[381568858,1756285867239,-160.0,0.00024,7]
[381568859,1756285867248,-217.23771399,0.00024,7]
[381568860,1756285867258,-160.0,0.00024,7]
[381568861,1756285867268,-232.59867797,0.00024,7]
[381568862,1756285867277,-160.0,0.00024,7]
[381568863,1756285867287,-1000.0,0.00024021,2]
[381568864,1756285867296,-1000.0,0.00024021,2]
[381568865,1756285867305,-1000.0,0.00024021,2]
[381568866,1756285867315,-1000.0,0.00024021,2]
[381568867,1756285867324,-1000.0,0.00024021,2]
[381568868,1756285867334,-1000.0,0.00024021,2]
[381568869,1756285867344,-480.0,0.00024083,2]
[381568870,1756285867354,-980.51,0.00024083,2]
[381568871,1756285867363,-1507.06,0.00024083,2]
[381568872,1756285867372,-2202.7,0.00024083,2]
[381568873,1756285867382,-3390.88,0.00024083,2]
[381568874,1756285867393,-480.0,0.00024085,2]
[381568875,1756285867402,-504.45,0.00024085,2]
[381568876,1756285867411,-480.0,0.00024085,2]
[381568877,1756285867421,-1844.79,0.00024085,2]
[381568878,1756285867431,-695.09,0.00024085,2]
[381568879,1756285867440,-626.12,0.00024085,2]
[381568880,1756285867449,-480.0,0.00024085,2]
[381568881,1756285867459,-4054.27,0.00024085,2]
[381568882,1756285867468,-7453.14,0.00024085,2]
[381568883,1756285867478,-1277.04,0.00024085,2]
[381568884,1756285867487,-630.33,0.00024085,2]
[381568885,1756285867497,-2352.9,0.00024085,2]
[381568886,1756285867506,-829.42,0.00024085,2]
[381568887,1756285867515,-1288.51,0.00024085,2]
[381568888,1756285867524,-151.0,0.000241,10]
[381568889,1756285867534,-511.85173203,0.00024139,2]
[381568890,1756285867543,-1000.0,0.00024139,2]
[381568891,1756285867554,-397.68993549,0.00024171,2]
[381568892,1756285867563,-501.68822073,0.00024171,2]
[381568893,1756285867573,-1000.0,0.00024173,2]
[381568894,1756285867583,-1000.0,0.00024173,2]
[381568895,1756285867592,-480.0,0.00024173,2]
[381568896,1756285867601,-480.0,0.00024173,2]
[381568897,1756285867611,-480.0,0.00024173,2]
[381568898,1756285867620,-480.0,0.00024173,2]
[381568899,1756285867629,-480.0,0.00024173,2]
[381568900,1756285867639,-480.0,0.00024173,2]
[381568901,1756285867648,-2736.5,0.00024173,2]
[381568902,1756285867657,-2843.68,0.00024173,2]
[381568903,1756285867667,-567.22560353,0.00024173,2]
[381568904,1756285867676,-13159.72,0.00024173,2]
[381568905,1756285867686,-3876.01,0.00024173,2]
[381568906,1756285867696,-480.0,0.00024173,2]
[381568907,1756285867705,-560.35,0.00024173,2]
[381568908,1756285867714,-2907.02,0.00024173,2]
[381568909,1756285867724,-480.0,0.00024173,2]
[381568910,1756285867733,-480.0,0.00024173,2]
[381568911,1756285867743,-510.86,0.00024173,2]
[381568912,1756285867752,-1176.8,0.00024173,2]
[381568913,1756285867762,-480.0,0.00024173,2]
[381568914,1756285867772,-2885.07,0.00024173,2]
[381568915,1756285867781,-1002.52419901,0.0002418,2]
[381568916,1756285867924,-151.0,0.000242,10]
[381568917,1756285867934,-480.0,0.00024216,2]
[381568918,1756285867943,-480.0,0.00024216,2]
[381568919,1756285867952,-480.0,0.00024216,2]
[381568920,1756285867962,-480.0,0.00024216,2]
[381568921,1756285867971,-480.0,0.00024216,2]
[381568922,1756285867981,-1304.71,0.00024216,2]
[381568923,1756285867990,-500.0,0.00024216,2]
[381568924,1756285867999,-480.0,0.00024249,2]
[381568925,1756285868009,-480.0,0.00024249,2]
[381568926,1756285868019,-541.47,0.00024249,2]
[381568927,1756285868028,-498.9,0.00024249,2]
[381568928,1756285868038,-563.3,0.00024249,2]
[381568929,1756285868047,-480.0,0.00024249,2]
[381568930,1756285868056,-480.0,0.00024249,2]
[381568931,1756285868065,-480.0,0.00024249,2]
[381568932,1756285868074,-480.0,0.00024249,2]
[381568933,1756285868084,-720.79,0.00024249,2]
[381568934,1756285868096,-480.0,0.00024249,2]
[381568935,1756285868106,-480.0,0.00024249,2]
[381568936,1756285868115,-480.0,0.00024249,2]
[381568937,1756285868125,-480.0,0.00024249,2]
[381568938,1756285868134,-501.91,0.00024249,2]
[381568939,1756285868144,-480.0,0.00024249,2]
[381568940,1756285868154,-730.1,0.00024249,2]
[381568941,1756285868166,-702.89,0.00024249,2]
[381568942,1756285868175,-285.52630363,0.00024249,2]
[381568943,1756285868185,-565.76,0.00024249,2]
[381568944,1756285868193,-674.26,0.00024249,2]
[381568945,1756285868203,-480.0,0.00024249,2]
[381568946,1756285868212,-679.8,0.00024249,2]
[381568947,1756285868221,-480.0,0.00024249,2]
[381568948,1756285868231,-480.0,0.00024249,2]
[381568949,1756285868240,-491.07388586,0.00024249,2]
[381568950,1756285868249,-480.0,0.00024249,2]
[381568951,1756285868259,-712.05,0.00024249,2]
[381568952,1756285868269,-480.0,0.00024249,2]
[381568953,1756285868278,-480.0,0.00024249,2]
[381568954,1756285868287,-979.4,0.00024249,2]
[381568955,1756285868296,-712.53,0.00024249,2]
[381568956,1756285868306,-1469.65,0.00024249,2]
[381568957,1756285868315,-480.0,0.00024249,2]
[381568958,1756285868325,-639.0,0.00024249,2]
[381568959,1756285868335,-480.0,0.00024249,2]
[381568960,1756285868344,-480.0,0.00024249,2]
[381568961,1756285868353,-817.51,0.00024249,2]
[381568962,1756285868362,-480.0,0.00024249,2]
[381568963,1756285868371,-672.32,0.00024249,2]
[381568964,1756285868381,-506.58,0.00024249,2]
[381568965,1756285868391,-4677.51,0.00024249,2]
[381568966,1756285868400,-480.0,0.00024249,2]
[381568967,1756285868410,-480.0,0.00024249,2]
[381568968,1756285868419,-2100.06,0.00024249,2]
[381568969,1756285868428,-657.34,0.00024249,2]
[381568970,1756285868437,-1882.32,0.00024249,2]
[381568971,1756285868446,-587.34,0.00024249,2]
[381568972,1756285868455,-2412.59,0.00024249,2]
[381568973,1756285868464,-480.0,0.00024249,2]
[381568974,1756285868474,-480.0,0.00024249,2]
[381568975,1756285868483,-495.16,0.00024249,2]
[381568976,1756285868492,-480.0,0.00024249,2]
[381568977,1756285868502,-480.0,0.00024249,2]
[381568978,1756285868511,-820.71,0.00024249,2]
[381568979,1756285868520,-480.0,0.00024249,2]
[381568980,1756285868529,-748.5,0.00024249,2]
[381568981,1756285868539,-480.0,0.00024249,2]
[381568982,1756285868547,-549.5,0.00024249,2]
[381568983,1756285868556,-536.98,0.00024249,2]
[381568984,1756285868565,-1687.19,0.00024249,2]
[381568985,1756285868575,-480.0,0.00024249,2]
[381568986,1756285868584,-1124.67,0.00024249,2]
[381568987,1756285868593,-939.76,0.00024249,2]
[381568988,1756285868602,-973.37,0.00024257,2]
[381568989,1756285868611,-598.01,0.00024257,2]
[381568990,1756285868620,-480.0,0.00024257,2]
[381568991,1756285868629,-480.0,0.00024257,2]
[381568992,1756285868638,-480.0,0.00024257,2]
[381568993,1756285868648,-480.0,0.00024257,2]
[381568994,1756285868657,-480.0,0.00024257,2]
[381568995,1756285868666,-480.0,0.00024257,2]
[381568996,1756285868675,-480.0,0.00024257,2]
[381568997,1756285868684,-480.0,0.00024257,2]
[381568998,1756285868693,-692.86,0.00024257,2]
[381568999,1756285868702,-480.0,0.00024257,2]
[381569000,1756285868711,-480.0,0.00024257,2]
[381569001,1756285868721,-823.54,0.00024257,2]
[381569002,1756285868730,-480.0,0.00024257,2]
[381569003,1756285868739,-904.0,0.00024257,2]
[381569004,1756285868748,-539.95,0.00024257,2]
[381569005,1756285868757,-543.54,0.00024257,2]
[381569006,1756285868766,-480.0,0.00024257,2]
[381569007,1756285868776,-589.92,0.00024257,2]
[381569008,1756285868785,-480.0,0.00024257,2]
[381569009,1756285868794,-573.33,0.00024257,2]
[381569010,1756285868804,-518.46,0.00024257,2]
[381569011,1756285868813,-1072.36,0.00024257,2]
[381569012,1756285868821,-661.31,0.00024257,2]
[381569013,1756285868831,-480.0,0.00024257,2]
[381569014,1756285868840,-480.0,0.00024257,2]
[381569015,1756285868850,-1579.27,0.00024257,2]
[381569016,1756285868859,-480.0,0.00024257,2]
[381569017,1756285868868,-2289.21,0.00024257,2]
[381569018,1756285868878,-480.0,0.00024257,2]
[381569019,1756285868887,-1276.73,0.00024257,2]
[381569020,1756285868897,-480.0,0.00024257,2]
[381569021,1756285868906,-588.66,0.00024257,2]
[381569022,1756285868915,-480.0,0.00024257,2]
[381569023,1756285868924,-480.0,0.00024257,2]
[381569024,1756285868933,-480.0,0.00024257,2]
[381569025,1756285868943,-638.04,0.00024257,2]
[381569026,1756285868952,-483.41,0.00024257,2]
[381569027,1756285868961,-565.0,0.00024257,2]
[381569028,1756285868971,-480.0,0.00024257,2]
[381569029,1756285868980,-212.61152434,0.00024257,2]
[381569030,1756285868989,-726.75,0.00024257,2]
[381569031,1756285868998,-737.76,0.00024257,2]
[381569032,1756285869007,-480.0,0.00024257,2]
[381569033,1756285869016,-480.0,0.00024257,2]
[381569034,1756285869026,-755.95,0.00024257,2]
[381569035,1756285869036,-546.92,0.00024257,2]
[381569036,1756285869045,-480.0,0.00024257,2]
[381569037,1756285869054,-480.0,0.00024257,2]
[381569038,1756285869063,-1220.67,0.00024257,2]
[381569039,1756285869073,-480.0,0.00024257,2]
[381569040,1756285869084,-1004.72,0.00024257,2]
[381569041,1756285869098,-624.24,0.00024257,2]
[381569042,1756285869107,-831.69,0.00024257,2]
[381569043,1756285869117,-1158.97,0.00024257,2]
[381569044,1756285869127,-894.53,0.00024257,2]
[381569045,1756285869137,-578.64,0.00024257,2]
[381569046,1756285869147,-553.43,0.00024257,2]
[381569047,1756285869155,-480.0,0.00024257,2]
[381569048,1756285869169,-1766.57,0.00024257,2]
[381569049,1756285869180,-518.24,0.00024257,2]
[381569050,1756285869190,-1075.97,0.00024257,2]
[381569051,1756285869198,-480.0,0.00024257,2]
[381569052,1756285869208,-480.0,0.00024257,2]
[381569053,1756285869217,-480.0,0.00024257,2]
[381569054,1756285869226,-480.0,0.00024257,2]
[381569055,1756285869235,-480.0,0.00024257,2]
[381569056,1756285869244,-480.0,0.00024257,2]
[381569057,1756285869254,-580.93,0.00024257,2]
[381569058,1756285869264,-480.0,0.00024257,2]
[381569059,1756285869273,-480.0,0.00024257,2]
[381569060,1756285869282,-604.48,0.00024257,2]
[381569061,1756285869292,-480.0,0.00024257,2]
[381569062,1756285869301,-912.71,0.00024257,2]
[381569063,1756285869311,-712.92,0.00024257,2]
[381569064,1756285869321,-693.87,0.00024257,2]
[381569065,1756285869330,-842.6,0.00024257,2]
[381569066,1756285869339,-480.0,0.00024257,2]
[381569067,1756285869349,-764.06,0.00024257,2]
[381569068,1756285869358,-480.09,0.00024259,2]
[381569069,1756285869368,-480.0,0.00024259,2]
[381569070,1756285869377,-928.11,0.00024259,2]
[381569071,1756285869386,-480.0,0.00024259,2]
[381569072,1756285869396,-1912.74,0.00024259,2]
[381569073,1756285869405,-7935.53,0.00024259,2]
[381569074,1756285869415,-3188.91,0.00024259,2]
[381569075,1756285869424,-661.24,0.00024259,2]
[381569076,1756285869434,-1287.31,0.00024259,2]
[381569077,1756285869443,-7833.3,0.00024259,2]
[381569078,1756285869452,-1493.34,0.0002426,2]
[381569079,1756285869462,-824.96,0.0002426,2]
[381569080,1756285869471,-579.94,0.0002426,2]
[381569081,1756285869480,-830.02,0.0002426,2]
[381569082,1756285869490,-970.25,0.0002426,2]
[381569083,1756285869498,-480.0,0.0002426,2]
[381569084,1756285869507,-786.53,0.0002426,2]
[381569085,1756285869517,-848.93,0.0002426,2]
[381569086,1756285869526,-789.12,0.0002426,2]
[381569087,1756285869535,-1366.37,0.0002426,2]
[381569088,1756285869544,-566.14,0.0002426,2]
[381569089,1756285869553,-480.0,0.0002426,2]
[381569090,1756285869562,-678.67,0.0002426,2]
[381569091,1756285869571,-822.43,0.0002426,2]
[381569092,1756285869580,-1389.22,0.0002426,2]
[381569093,1756285869589,-704.2,0.0002426,2]
[381569094,1756285869598,-792.52,0.0002426,2]
[381569095,1756285869608,-1169.64,0.0002426,2]
[381569096,1756285869618,-480.0,0.0002426,2]
[381569097,1756285869627,-480.0,0.0002426,2]
[381569098,1756285869636,-1043.59,0.0002426,2]
[381569099,1756285869646,-243.12337072,0.0002426,2]
[381569100,1756285869655,-480.0,0.0002426,2]
[381569101,1756285869664,-480.0,0.0002426,2]
[381569102,1756285869673,-618.15,0.0002426,2]
[381569103,1756285869682,-1320.45,0.0002426,2]
[381569104,1756285869692,-841.41,0.0002426,2]
[381569105,1756285869701,-619.37,0.0002426,2]
[381569106,1756285869710,-533.22,0.0002426,2]
[381569107,1756285869720,-872.01,0.0002426,2]
[381569108,1756285869730,-646.46,0.0002426,2]
[381569109,1756285869739,-480.0,0.0002426,2]
[381569110,1756285869749,-480.0,0.0002426,2]
[381569111,1756285869759,-938.57,0.0002426,2]
[381569112,1756285869769,-597.03,0.0002426,2]
[381569113,1756285869778,-942.59,0.0002426,2]
[381569114,1756285869788,-2221.35,0.0002426,2]
[381569115,1756285869797,-480.0,0.0002426,2]
[381569116,1756285869807,-730.56,0.0002426,2]
[381569117,1756285869816,-480.0,0.0002426,2]
[381569118,1756285869825,-480.0,0.0002426,2]
[381569119,1756285869835,-1151.88,0.0002426,2]
[381569120,1756285869844,-723.52,0.0002426,2]
[381569121,1756285869853,-622.95,0.0002426,2]
[381569122,1756285869864,-722.75,0.0002426,2]
[381569123,1756285869874,-2892.81,0.0002426,2]
[381569124,1756285869883,-1014.18,0.0002426,2]
[381569125,1756285869892,-480.0,0.0002426,2]
[381569126,1756285869901,-1664.28,0.0002426,2]
[381569127,1756285869912,-480.0,0.0002426,2]
[381569128,1756285869921,-989.88,0.0002426,2]
[381569129,1756285869930,-954.3,0.0002426,2]
[381569130,1756285870068,-696.96,0.0002426,2]
[381569131,1756285870079,-1583.05,0.0002426,2]
[381569132,1756285870094,-1095.71,0.0002426,2]
[381569133,1756285870103,-1292.01,0.0002426,2]
[381569134,1756285870112,-7005.01,0.0002426,2]
[381569135,1756285870122,-1021.23,0.0002426,2]
[381569136,1756285870131,-480.0,0.0002426,2]
[381569137,1756285870141,-480.0,0.0002426,2]
[381569138,1756285870150,-1613.16,0.0002426,2]
[381569139,1756285870159,-767.01,0.0002426,2]
[381569140,1756285870170,-1041.73,0.0002426,2]
[381569141,1756285870180,-480.0,0.0002426,2]
[381569142,1756285870189,-1932.71,0.0002426,2]
[381569143,1756285870199,-480.0,0.0002426,2]
[381569144,1756285870208,-480.0,0.0002426,2]
[381569145,1756285870217,-1275.38,0.0002426,2]
[381569146,1756285870227,-480.0,0.0002426,2]
[381569147,1756285870236,-828.36,0.0002426,2]
[381569148,1756285870245,-480.0,0.0002426,2]
[381569149,1756285870255,-596.07,0.0002426,2]
[381569150,1756285870264,-971.07,0.0002426,2]
[381569151,1756285870274,-480.0,0.0002426,2]
[381569152,1756285870284,-264.33627476,0.0002426,2]
[381569153,1756285870293,-777.08,0.0002426,2]
[381569154,1756285870302,-591.62,0.0002426,2]
[381569155,1756285870312,-626.87,0.0002426,2]
[381569156,1756285870321,-480.0,0.0002426,2]
[381569157,1756285870331,-480.0,0.0002426,2]
[381569158,1756285870340,-480.0,0.0002426,2]
[381569159,1756285870349,-866.92,0.0002426,2]
[381569160,1756285870359,-480.0,0.00024261,2]
[381569161,1756285870368,-880.24,0.00024261,2]
[381569162,1756285870377,-480.0,0.00024261,2]
[381569163,1756285870387,-480.0,0.00024261,2]
[381569164,1756285870397,-480.0,0.00024261,2]
[381569165,1756285870406,-466.46234252,0.00024261,2]
[381569166,1756285870415,-480.0,0.00024261,2]
[381569167,1756285870424,-692.95,0.00024261,2]
[381569168,1756285870434,-480.0,0.00024261,2]
[381569169,1756285870443,-480.0,0.00024261,2]
[381569170,1756285870452,-480.0,0.00024261,2]
[381569171,1756285870461,-480.0,0.00024261,2]
[381569172,1756285870471,-629.17,0.00024261,2]
[381569173,1756285870480,-480.0,0.00024261,2]
[381569174,1756285870489,-737.21,0.00024261,2]
[381569175,1756285870498,-480.0,0.00024261,2]
[381569176,1756285870508,-773.62,0.00024261,2]
[381569177,1756285870518,-480.0,0.00024261,2]
[381569178,1756285870527,-888.62,0.00024261,2]
[381569179,1756285870537,-627.03,0.00024261,2]
[381569180,1756285870547,-613.83,0.00024261,2]
[381569181,1756285870556,-480.0,0.00024261,2]
[381569182,1756285870565,-973.97,0.00024261,2]
[381569183,1756285870575,-1191.58,0.00024261,2]
[381569184,1756285870584,-480.0,0.00024261,2]
[381569185,1756285870593,-480.0,0.00024261,2]
[381569186,1756285870603,-666.29,0.00024261,2]
[381569187,1756285870613,-770.58,0.00024261,2]
[381569188,1756285870623,-745.81,0.00024261,2]
[381569189,1756285870633,-480.0,0.00024261,2]
[381569190,1756285870643,-515.48,0.00024261,2]
[381569191,1756285870652,-820.08,0.00024261,2]
[381569192,1756285870661,-480.0,0.00024261,2]
[381569193,1756285870671,-480.0,0.00024261,2]
[381569194,1756285870680,-480.0,0.00024261,2]
[381569195,1756285870689,-151.0,0.00024261,7]
[381569196,1756285870698,-480.0,0.00024261,2]
[381569197,1756285870709,-480.0,0.00024261,2]
[381569198,1756285870719,-151.0,0.00024261,7]
[381569199,1756285870728,-480.0,0.00024261,2]
[381569200,1756285870737,-233.523691,0.00024261,7]